[Event "Live Chess"]
[Site "Chess.com"]
[Date "2023.05.20"]
[Round "-"]
[White "BearFromUkraine"]
[Black "CeladonFish"]
[Result "0-1"]
[WhiteElo "1058"]
[BlackElo "1156"]
[TimeControl "300"]
[EndTime "14:50:26 PDT"]
[Termination "CeladonFish won - game abandoned"]

1. e4 {[%clk 0:04:56.9]} 1... d6 {[%clk 0:04:59.3]} 2. d4 {[%clk 0:04:55.2]}
2... Nf6 {[%clk 0:04:58.2]} 3. Nc3 {[%clk 0:04:46.7]} 3... g6 {[%clk 0:04:57.3]}
4. Bc4 {[%clk 0:04:44.1]} 4... Nxe4 {[%clk 0:04:53]} 5. Nxe4 {[%clk 0:04:39.9]}
5... d5 {[%clk 0:04:52.4]} 6. Bxd5 {[%clk 0:04:38.3]} 6... Qxd5 {[%clk
0:04:50.9]} 7. Qd3 {[%clk 0:04:25.3]} 7... Bf5 {[%clk 0:04:48.2]} 8. f3 {[%clk
0:04:21.2]} 8... Nc6 {[%clk 0:04:32.7]} 9. Be3 {[%clk 0:04:17.8]} 9... Nb4
{[%clk 0:04:22.2]} 10. Qb3 {[%clk 0:04:06.5]} 10... Qxb3 {[%clk 0:04:17.5]} 11.
axb3 {[%clk 0:04:02.2]} 11... Nxc2+ {[%clk 0:04:16.6]} 12. Kd2 {[%clk
0:03:54.2]} 12... Nxa1 {[%clk 0:04:13.9]} 0-1

[Event "Live Chess"]
[Site "Chess.com"]
[Date "2023.05.20"]
[Round "-"]
[White "AzizChess2019"]
[Black "ProfPoisson"]
[Result "1-0"]
[WhiteElo "1735"]
[BlackElo "1118"]
[TimeControl "300"]
[EndTime "14:50:42 PDT"]
[Termination "AzizChess2019 won by resignation"]

1. e4 {[%clk 0:04:57.3]} 1... e5 {[%clk 0:04:58.2]} 2. Bc4 {[%clk 0:04:52.9]}
2... Nf6 {[%clk 0:04:55.7]} 3. Nf3 {[%clk 0:04:52.1]} 3... Nxe4 {[%clk
0:04:53.9]} 4. d3 {[%clk 0:04:49.2]} 4... d5 {[%clk 0:04:49.8]} 5. dxe4 {[%clk
0:04:46.7]} 5... dxc4 {[%clk 0:04:46.5]} 6. Qxd8+ {[%clk 0:04:44.9]} 6... Kxd8
{[%clk 0:04:46.1]} 7. Nxe5 {[%clk 0:04:42.9]} 7... Be6 {[%clk 0:04:43.1]} 8. O-O
{[%clk 0:04:39.3]} 8... Bd6 {[%clk 0:04:41.6]} 9. Nf3 {[%clk 0:04:33.8]} 9...
Nc6 {[%clk 0:04:37.3]} 10. c3 {[%clk 0:04:32.1]} 10... f5 {[%clk 0:04:28.6]} 11.
exf5 {[%clk 0:04:27.2]} 11... Bxf5 {[%clk 0:04:26.2]} 12. Bg5+ {[%clk
0:04:26.3]} 12... Be7 {[%clk 0:04:22.3]} 13. Nbd2 {[%clk 0:04:21.6]} 13... Bxg5
{[%clk 0:04:19.7]} 14. Nxg5 {[%clk 0:04:21.5]} 14... Rf8 {[%clk 0:04:13.5]} 15.
Rfd1 {[%clk 0:04:13.2]} 15... Bd3 {[%clk 0:04:11.2]} 16. Nxc4 {[%clk 0:04:03.3]}
16... Kd7 {[%clk 0:04:09.6]} 17. Nf3 {[%clk 0:03:59]} 17... Rae8 {[%clk
0:04:06.2]} 18. Ne1 {[%clk 0:03:44.4]} 18... Rxe1+ {[%clk 0:03:59.7]} 19. Rxe1
{[%clk 0:03:42.9]} 19... Bxc4 {[%clk 0:03:59.3]} 20. Rad1+ {[%clk 0:03:40.5]}
20... Kc8 {[%clk 0:03:56.1]} 21. b3 {[%clk 0:03:39.5]} 21... Bf7 {[%clk
0:03:44.6]} 22. Rd3 {[%clk 0:03:32.4]} 22... h5 {[%clk 0:03:40.5]} 23. Rde3
{[%clk 0:03:29.7]} 23... g5 {[%clk 0:03:38.3]} 24. h3 {[%clk 0:03:27.3]} 24...
g4 {[%clk 0:03:24.6]} 25. hxg4 {[%clk 0:03:24.5]} 25... hxg4 {[%clk 0:03:22.8]}
26. Re4 {[%clk 0:03:23.1]} 26... Bh5 {[%clk 0:03:00.9]} 27. g3 {[%clk
0:03:16.4]} 27... Nd8 {[%clk 0:02:41]} 28. Kg2 {[%clk 0:03:09.4]} 28... Nf7
{[%clk 0:02:39.2]} 29. Rf4 {[%clk 0:03:00.8]} 29... Kd8 {[%clk 0:02:28.7]} 30.
Rh1 {[%clk 0:02:47.7]} 30... Bg6 {[%clk 0:01:54.2]} 31. Rxg4 {[%clk 0:02:38.4]}
31... Ne5 {[%clk 0:01:52]} 32. Rd4+ {[%clk 0:02:31.8]} 32... Ke7 {[%clk
0:01:48.5]} 33. Re1 {[%clk 0:02:26.6]} 33... Kf6 {[%clk 0:01:42.6]} 34. Rf4+
{[%clk 0:02:22.4]} 34... Ke6 {[%clk 0:01:38.9]} 35. Rxf8 {[%clk 0:02:20]} 1-0

[Event "Live Chess"]
[Site "Chess.com"]
[Date "2023.05.20"]
[Round "-"]
[White "1600x"]
[Black "OSmith06"]
[Result "1-0"]
[WhiteElo "1800"]
[BlackElo "1659"]
[TimeControl "300"]
[EndTime "14:50:58 PDT"]
[Termination "1600x won by checkmate"]

1. e4 {[%clk 0:04:50.4]} 1... c6 {[%clk 0:04:59]} 2. d4 {[%clk 0:04:48.9]} 2...
d5 {[%clk 0:04:58.9]} 3. e5 {[%clk 0:04:47.3]} 3... c5 {[%clk 0:04:57.1]} 4.
dxc5 {[%clk 0:04:46]} 4... Nc6 {[%clk 0:04:51.6]} 5. Nf3 {[%clk 0:04:38.1]} 5...
Bg4 {[%clk 0:04:50.3]} 6. h3 {[%clk 0:04:32.3]} 6... Bxf3 {[%clk 0:04:49.1]} 7.
Qxf3 {[%clk 0:04:31]} 7... e6 {[%clk 0:04:47.2]} 8. Bb5 {[%clk 0:04:29]} 8...
Bxc5 {[%clk 0:04:45.2]} 9. Qc3 {[%clk 0:04:27.6]} 9... Qb6 {[%clk 0:04:32.2]}
10. Qd3 {[%clk 0:04:24.1]} 10... Bxf2+ {[%clk 0:04:25.7]} 11. Kd1 {[%clk
0:04:21.1]} 11... Qd4 {[%clk 0:04:15.5]} 12. Nd2 {[%clk 0:04:15.8]} 12... Qxd3
{[%clk 0:04:11.3]} 13. cxd3 {[%clk 0:04:12.5]} 13... Bd4 {[%clk 0:04:07.5]} 14.
Nf3 {[%clk 0:04:09.1]} 14... Bb6 {[%clk 0:04:01]} 15. Bxc6+ {[%clk 0:04:06.9]}
15... bxc6 {[%clk 0:04:00.9]} 16. d4 {[%clk 0:04:05.1]} 16... Ne7 {[%clk
0:03:57.8]} 17. Bf4 {[%clk 0:04:00.2]} 17... Nf5 {[%clk 0:03:56.7]} 18. Kc2
{[%clk 0:03:57.5]} 18... Nxd4+ {[%clk 0:03:54]} 19. Kd3 {[%clk 0:03:47.8]} 19...
Nxf3 {[%clk 0:03:51.5]} 20. gxf3 {[%clk 0:03:45.2]} 20... Ke7 {[%clk 0:03:46.2]}
21. Rac1 {[%clk 0:03:32.1]} 21... c5 {[%clk 0:03:45.1]} 22. Bg5+ {[%clk
0:03:25.7]} 22... f6 {[%clk 0:03:43]} 23. Bh4 {[%clk 0:03:23.4]} 23... g5 {[%clk
0:03:38.6]} 24. exf6+ {[%clk 0:03:21.2]} 24... Kxf6 {[%clk 0:03:37.9]} 25. Bg3
{[%clk 0:02:53.8]} 25... e5 {[%clk 0:03:26.8]} 26. Kc2 {[%clk 0:02:27.7]} 26...
h5 {[%clk 0:03:23.1]} 27. Rcd1 {[%clk 0:02:21]} 27... d4 {[%clk 0:03:18.8]} 28.
h4 {[%clk 0:02:18.8]} 28... g4 {[%clk 0:03:15]} 29. Rdf1 {[%clk 0:02:16.8]}
29... gxf3 {[%clk 0:03:09.3]} 30. Rxf3+ {[%clk 0:02:14]} 30... Ke6 {[%clk
0:03:01]} 31. Rhf1 {[%clk 0:02:05.8]} 31... Bd8 {[%clk 0:02:42.2]} 32. Rf5
{[%clk 0:02:02.4]} 32... Bc7 {[%clk 0:02:37.5]} 33. Rf7 {[%clk 0:01:59.5]} 33...
Bd6 {[%clk 0:02:29]} 34. R1f6+ {[%clk 0:01:53.2]} 34... Kd5 {[%clk 0:02:27.3]}
35. Rd7 {[%clk 0:01:50.9]} 35... d3+ {[%clk 0:02:06]} 36. Kxd3 {[%clk
0:01:47.8]} 36... e4+ {[%clk 0:02:00.8]} 37. Ke3 {[%clk 0:01:45.2]} 37... Rhf8
{[%clk 0:01:53.8]} 38. Rfxd6+ {[%clk 0:01:40.8]} 38... Kc4 {[%clk 0:01:53.2]}
39. Be1 {[%clk 0:01:37.3]} 39... Rae8 {[%clk 0:01:40.9]} 40. b3+ {[%clk
0:01:32.5]} 40... Kb5 {[%clk 0:01:39.4]} 41. a4# {[%clk 0:01:30.2]} 1-0

[Event "Live Chess"]
[Site "Chess.com"]
[Date "2023.05.20"]
[Round "-"]
[White "Ferrarifan27"]
[Black "Biranidun"]
[Result "0-1"]
[WhiteElo "2052"]
[BlackElo "2765"]
[TimeControl "300"]
[EndTime "14:51:00 PDT"]
[Termination "Biranidun won by resignation"]

1. e4 {[%clk 0:04:56.6]} 1... c5 {[%clk 0:04:58.7]} 2. Nf3 {[%clk 0:04:53.3]}
2... d6 {[%clk 0:04:58.3]} 3. d4 {[%clk 0:04:51.4]} 3... cxd4 {[%clk 0:04:58.2]}
4. Nxd4 {[%clk 0:04:49.6]} 4... Nf6 {[%clk 0:04:57.8]} 5. Nc3 {[%clk 0:04:47.3]}
5... g6 {[%clk 0:04:57.2]} 6. Nd5 {[%clk 0:04:45.5]} 6... Bg7 {[%clk 0:04:49.6]}
7. Nxf6+ {[%clk 0:04:40]} 7... Bxf6 {[%clk 0:04:49.5]} 8. Bh6 {[%clk 0:04:38.1]}
8... Nc6 {[%clk 0:04:48.2]} 9. c3 {[%clk 0:04:33.9]} 9... Qb6 {[%clk 0:04:47.1]}
10. Nxc6 {[%clk 0:04:15.3]} 10... bxc6 {[%clk 0:04:47]} 11. Qc2 {[%clk
0:04:07.8]} 11... Rb8 {[%clk 0:04:30.5]} 12. Rb1 {[%clk 0:04:06.2]} 12... Be6
{[%clk 0:04:28.6]} 13. b3 {[%clk 0:04:04.2]} 13... Qa5 {[%clk 0:04:24.8]} 14.
Bd2 {[%clk 0:04:00.6]} 14... O-O {[%clk 0:04:21.4]} 15. Bd3 {[%clk 0:03:56.2]}
15... d5 {[%clk 0:04:04]} 16. exd5 {[%clk 0:03:53.1]} 16... Qxd5 {[%clk
0:04:00]} 17. O-O {[%clk 0:03:49.8]} 17... Rfd8 {[%clk 0:03:58.9]} 18. Bf4
{[%clk 0:03:44.3]} 18... Rb7 {[%clk 0:03:40.7]} 19. Be4 {[%clk 0:03:33.9]} 19...
Qc5 {[%clk 0:03:37.1]} 20. c4 {[%clk 0:03:26.9]} 20... Rbd7 {[%clk 0:03:35.1]}
21. Be3 {[%clk 0:03:24.5]} 21... Qe5 {[%clk 0:03:29.8]} 22. f4 {[%clk
0:03:16.1]} 22... Qa5 {[%clk 0:03:22.3]} 23. f5 {[%clk 0:03:12]} 23... gxf5
{[%clk 0:03:21.1]} 24. Bxf5 {[%clk 0:03:10.7]} 24... Bxf5 {[%clk 0:03:20]} 25.
Rxf5 {[%clk 0:03:09.2]} 25... Qc7 {[%clk 0:03:12]} 26. Rh5 {[%clk 0:03:01.6]}
26... Rd3 {[%clk 0:03:10.7]} 27. Bg5 {[%clk 0:02:46.1]} 27... Qe5 {[%clk
0:03:01.5]} 28. h4 {[%clk 0:02:28.9]} 28... Qd4+ {[%clk 0:02:46.7]} 29. Kh1
{[%clk 0:02:23.5]} 29... Qg4 {[%clk 0:02:45.9]} 30. Bxf6 {[%clk 0:02:16.3]}
30... Qxh5 {[%clk 0:02:41.7]} 31. Bxe7 {[%clk 0:02:14.6]} 31... Rd1+ {[%clk
0:02:23.3]} 32. Rxd1 {[%clk 0:02:10.6]} 32... Rxd1+ {[%clk 0:02:23.2]} 33. Kh2
{[%clk 0:02:08.9]} 33... Qe5+ {[%clk 0:02:22.8]} 34. Kh3 {[%clk 0:02:04.7]}
34... Rh1+ {[%clk 0:02:18.5]} 35. Kg4 {[%clk 0:02:04]} 35... h5+ {[%clk
0:02:13.5]} 36. Kf3 {[%clk 0:02:01.9]} 36... Rf1+ {[%clk 0:02:13.2]} 37. Qf2
{[%clk 0:01:58.3]} 37... Rxf2+ {[%clk 0:02:12.7]} 38. Kxf2 {[%clk 0:01:57.6]}
38... Qxe7 {[%clk 0:02:12.6]} 0-1

[Event "Live Chess"]
[Site "Chess.com"]
[Date "2023.05.20"]
[Round "-"]
[White "Shepherds_Pie"]
[Black "EdenHazard8"]
[Result "1-0"]
[WhiteElo "1931"]
[BlackElo "2044"]
[TimeControl "300"]
[EndTime "14:51:02 PDT"]
[Termination "Shepherds_Pie won by resignation"]

1. c4 {[%clk 0:04:52.9]} 1... e5 {[%clk 0:04:59]} 2. Nc3 {[%clk 0:04:51.3]} 2...
Nc6 {[%clk 0:04:58.9]} 3. Nf3 {[%clk 0:04:47.2]} 3... f5 {[%clk 0:04:57.8]} 4.
d4 {[%clk 0:04:45.8]} 4... e4 {[%clk 0:04:56.8]} 5. Ng5 {[%clk 0:04:44.8]} 5...
h6 {[%clk 0:04:54.9]} 6. Nh3 {[%clk 0:04:43.4]} 6... Nf6 {[%clk 0:04:54.1]} 7.
Nf4 {[%clk 0:04:41.9]} 7... Bb4 {[%clk 0:04:51.5]} 8. Qb3 {[%clk 0:04:39.8]}
8... O-O {[%clk 0:04:46]} 9. e3 {[%clk 0:04:38.5]} 9... Kh7 {[%clk 0:04:42.8]}
10. Bd2 {[%clk 0:04:35.8]} 10... a5 {[%clk 0:04:40.8]} 11. a3 {[%clk 0:04:34]}
11... a4 {[%clk 0:04:39.7]} 12. Nxa4 {[%clk 0:04:20.1]} 12... Bxd2+ {[%clk
0:04:37.8]} 13. Kxd2 {[%clk 0:04:19.3]} 13... Na5 {[%clk 0:04:36.1]} 14. Qc3
{[%clk 0:04:15.5]} 14... d6 {[%clk 0:04:28.4]} 15. b4 {[%clk 0:04:12.9]} 15...
Nxc4+ {[%clk 0:04:24.9]} 16. Bxc4 {[%clk 0:04:10.8]} 16... Rxa4 {[%clk
0:04:24.2]} 17. h4 {[%clk 0:04:06.4]} 17... Bd7 {[%clk 0:04:13.4]} 18. Qb3
{[%clk 0:04:03.7]} 18... b5 {[%clk 0:04:07.7]} 19. Be6 {[%clk 0:04:01.1]} 19...
c6 {[%clk 0:04:03.5]} 20. h5 {[%clk 0:03:56.3]} 20... d5 {[%clk 0:04:01.8]} 21.
Bxd7 {[%clk 0:03:50.8]} 21... Qxd7 {[%clk 0:04:01.7]} 22. Ng6 {[%clk 0:03:49.1]}
22... Rfa8 {[%clk 0:04:00.2]} 23. Ne5 {[%clk 0:03:47.7]} 23... Qd6 {[%clk
0:03:55.1]} 24. Rhc1 {[%clk 0:03:45.9]} 24... R8a6 {[%clk 0:03:54]} 25. Qc3
{[%clk 0:03:37.1]} 25... Ng4 {[%clk 0:03:49.5]} 26. Nxg4 {[%clk 0:03:34.4]}
26... fxg4 {[%clk 0:03:47.8]} 27. Ke2 {[%clk 0:03:33.1]} 27... g3 {[%clk
0:03:44.8]} 28. f3 {[%clk 0:03:30.3]} 28... exf3+ {[%clk 0:03:42.4]} 29. gxf3
{[%clk 0:03:29.3]} 29... g2 {[%clk 0:03:35.6]} 30. Rg1 {[%clk 0:03:26.9]} 30...
Qg3 {[%clk 0:03:34.4]} 31. Qd3+ {[%clk 0:03:22.9]} 31... Kh8 {[%clk 0:03:29.9]}
32. Qf5 {[%clk 0:03:18.9]} 32... Rxa3 {[%clk 0:03:19.1]} 33. Rxa3 {[%clk
0:03:13.4]} 33... Rxa3 {[%clk 0:03:19]} 34. Qf8+ {[%clk 0:03:11.9]} 34... Kh7
{[%clk 0:03:17.7]} 35. Qf5+ {[%clk 0:03:10.7]} 35... Kg8 {[%clk 0:03:11.7]} 36.
Qe6+ {[%clk 0:03:05.2]} 36... Kf8 {[%clk 0:03:09.1]} 37. Qc8+ {[%clk 0:03:03.1]}
37... Kf7 {[%clk 0:03:07.1]} 38. Qd7+ {[%clk 0:03:01.5]} 38... Kf6 {[%clk
0:02:52]} 39. Qxc6+ {[%clk 0:02:56.8]} 39... Kg5 {[%clk 0:02:51]} 40. Qxd5+
{[%clk 0:02:55.2]} 40... Kh4 {[%clk 0:02:49.4]} 41. Qe4+ {[%clk 0:02:46.4]}
41... Kh3 {[%clk 0:02:48]} 42. Qg4+ {[%clk 0:02:44.7]} 42... Qxg4 {[%clk
0:02:45.6]} 43. fxg4 {[%clk 0:02:43.6]} 43... Kxg4 {[%clk 0:02:45.5]} 44. Rxg2+
{[%clk 0:02:42.2]} 44... Kxh5 {[%clk 0:02:45.2]} 45. Rxg7 {[%clk 0:02:41]} 45...
Rb3 {[%clk 0:02:43.7]} 46. d5 {[%clk 0:02:38.5]} 46... Rxb4 {[%clk 0:02:42.7]}
47. d6 {[%clk 0:02:37.5]} 47... Rb2+ {[%clk 0:02:42]} 48. Kd3 {[%clk 0:02:35.9]}
48... Rb1 {[%clk 0:02:41.3]} 49. Kc2 {[%clk 0:02:34.1]} 49... Ra1 {[%clk
0:02:39.1]} 50. d7 {[%clk 0:02:32.9]} 50... Ra8 {[%clk 0:02:37.5]} 51. Re7
{[%clk 0:02:30.6]} 51... Rd8 {[%clk 0:02:33]} 52. Kb3 {[%clk 0:02:26.6]} 52...
Kg6 {[%clk 0:02:28.3]} 53. Kb4 {[%clk 0:02:21.6]} 53... Kf6 {[%clk 0:02:26]} 54.
Rh7 {[%clk 0:02:20.4]} 54... Kg6 {[%clk 0:02:25]} 55. Re7 {[%clk 0:02:18]} 55...
h5 {[%clk 0:02:16.8]} 56. Kxb5 {[%clk 0:02:16.1]} 56... h4 {[%clk 0:02:15.8]}
57. Kc6 {[%clk 0:02:11.8]} 57... h3 {[%clk 0:02:14.3]} 58. Re8 {[%clk
0:02:08.9]} 58... h2 {[%clk 0:02:07.5]} 59. Rxd8 {[%clk 0:01:56.4]} 59... h1=Q+
{[%clk 0:02:06.2]} 60. Kc7 {[%clk 0:01:55.4]} 60... Qc1+ {[%clk 0:02:04.3]} 61.
Kd6 {[%clk 0:01:54.2]} 61... Qd2+ {[%clk 0:02:01.4]} 62. Kc7 {[%clk 0:01:52.4]}
62... Qc3+ {[%clk 0:01:57.2]} 63. Kb8 {[%clk 0:01:48.3]} 63... Qb4+ {[%clk
0:01:53.9]} 64. Kc8 {[%clk 0:01:47]} 64... Qc5+ {[%clk 0:01:49.3]} 65. Kb7
{[%clk 0:01:45.8]} 65... Qb5+ {[%clk 0:01:47.4]} 66. Kc7 {[%clk 0:01:44.6]}
66... Qa5+ {[%clk 0:01:42.1]} 67. Kc8 {[%clk 0:01:43.6]} 67... Kf7 {[%clk
0:01:27.5]} 68. Rf8+ {[%clk 0:01:39.8]} 68... Kxf8 {[%clk 0:01:25.1]} 69. d8=Q+
{[%clk 0:01:38.9]} 69... Qxd8+ {[%clk 0:01:25]} 70. Kxd8 {[%clk 0:01:37.9]}
70... Kf7 {[%clk 0:01:24.4]} 71. Kd7 {[%clk 0:01:37]} 71... Kf8 {[%clk
0:01:23.2]} 72. e4 {[%clk 0:01:35.5]} 72... Kf7 {[%clk 0:01:22.6]} 73. e5 {[%clk
0:01:34.6]} 1-0

[Event "Live Chess"]
[Site "Chess.com"]
[Date "2023.05.20"]
[Round "-"]
[White "chessfiction"]
[Black "KeithArkell"]
[Result "1/2-1/2"]
[WhiteElo "2345"]
[BlackElo "2614"]
[TimeControl "300"]
[EndTime "14:51:07 PDT"]
[Termination "Game drawn - timeout vs insufficient material"]

1. e4 {[%clk 0:04:57.6]} 1... c6 {[%clk 0:04:59.3]} 2. d4 {[%clk 0:04:56.3]}
2... d5 {[%clk 0:04:58.6]} 3. e5 {[%clk 0:04:55.8]} 3... c5 {[%clk 0:04:57.9]}
4. dxc5 {[%clk 0:04:53.9]} 4... Nc6 {[%clk 0:04:57.3]} 5. Nf3 {[%clk 0:04:52.6]}
5... Bg4 {[%clk 0:04:55.6]} 6. Bb5 {[%clk 0:04:50.9]} 6... Qa5+ {[%clk
0:04:53.2]} 7. Nc3 {[%clk 0:04:49.5]} 7... Bxf3 {[%clk 0:04:52.6]} 8. Qxf3
{[%clk 0:04:47.3]} 8... e6 {[%clk 0:04:52]} 9. O-O {[%clk 0:04:44.6]} 9... Bxc5
{[%clk 0:04:50.7]} 10. Bd2 {[%clk 0:04:40.1]} 10... Qc7 {[%clk 0:04:48.9]} 11.
Rfe1 {[%clk 0:04:35.2]} 11... Ne7 {[%clk 0:04:37.5]} 12. h4 {[%clk 0:04:32.2]}
12... Bd4 {[%clk 0:04:33]} 13. Qg3 {[%clk 0:04:28.1]} 13... Nf5 {[%clk
0:04:30.7]} 14. Qg4 {[%clk 0:04:25.5]} 14... h5 {[%clk 0:04:21]} 15. Qf4 {[%clk
0:04:23.6]} 15... Rd8 {[%clk 0:04:14.9]} 16. Rad1 {[%clk 0:04:06.4]} 16... O-O
{[%clk 0:04:07]} 17. Bd3 {[%clk 0:04:02.8]} 17... Bxe5 {[%clk 0:04:04.7]} 18.
Qg5 {[%clk 0:03:59.8]} 18... g6 {[%clk 0:03:49.2]} 19. g4 {[%clk 0:03:50.8]}
19... hxg4 {[%clk 0:03:43.3]} 20. h5 {[%clk 0:03:50.2]} 20... g3 {[%clk
0:03:17]} 21. hxg6 {[%clk 0:03:44.6]} 21... gxf2+ {[%clk 0:03:16.2]} 22. Kxf2
{[%clk 0:03:40.1]} 22... Bg3+ {[%clk 0:03:14.6]} 23. Kg2 {[%clk 0:03:32.7]}
23... Bxe1 {[%clk 0:03:11.8]} 24. gxf7+ {[%clk 0:03:04.7]} 24... Kxf7 {[%clk
0:03:10.2]} 25. Qh5+ {[%clk 0:03:01.4]} 25... Kg8 {[%clk 0:03:05.6]} 26. Rxe1
{[%clk 0:02:52.9]} 26... Qg3+ {[%clk 0:02:59.7]} 27. Kh1 {[%clk 0:02:50.8]}
27... Rd7 {[%clk 0:02:23.7]} 28. Rg1 {[%clk 0:02:43.6]} 28... Qxg1+ {[%clk
0:02:12.2]} 29. Kxg1 {[%clk 0:02:40.8]} 29... Rg7+ {[%clk 0:02:11.4]} 30. Bg5
{[%clk 0:02:33.9]} 30... Ne5 {[%clk 0:01:59.1]} 31. Bxf5 {[%clk 0:02:06.2]}
31... Nf3+ {[%clk 0:01:39.9]} 32. Kh1 {[%clk 0:01:14.3]} 32... Nxg5 {[%clk
0:01:06.8]} 33. Bd3 {[%clk 0:01:05.3]} 33... Nf3 {[%clk 0:00:56.4]} 34. Ne2
{[%clk 0:00:59.7]} 34... Rff7 {[%clk 0:00:31.8]} 35. Qh3 {[%clk 0:00:40.4]}
35... Rh7 {[%clk 0:00:29]} 36. Bxh7+ {[%clk 0:00:37.5]} 36... Rxh7 {[%clk
0:00:28.9]} 37. Qxh7+ {[%clk 0:00:36.2]} 37... Kxh7 {[%clk 0:00:28.8]} 38. Nf4
{[%clk 0:00:35.5]} 38... Ng5 {[%clk 0:00:26.1]} 39. Kg2 {[%clk 0:00:33.9]} 39...
Kg7 {[%clk 0:00:25.6]} 40. Nd3 {[%clk 0:00:32.6]} 40... Kf6 {[%clk 0:00:24.8]}
41. Nc5 {[%clk 0:00:32.1]} 41... b6 {[%clk 0:00:24.4]} 42. Nd3 {[%clk
0:00:28.8]} 42... Nf7 {[%clk 0:00:22.8]} 43. Nb4 {[%clk 0:00:28.2]} 43... a5
{[%clk 0:00:20.4]} 44. Nc6 {[%clk 0:00:27.6]} 44... Ne5 {[%clk 0:00:18.6]} 45.
Nd4 {[%clk 0:00:26.4]} 45... Nc4 {[%clk 0:00:17.8]} 46. b3 {[%clk 0:00:24.8]}
46... e5 {[%clk 0:00:17]} 47. Nb5 {[%clk 0:00:21.5]} 47... Ne3+ {[%clk
0:00:15.8]} 48. Kf3 {[%clk 0:00:21.1]} 48... Nxc2 {[%clk 0:00:15.2]} 49. Nc7
{[%clk 0:00:21]} 49... d4 {[%clk 0:00:13.9]} 50. Nd5+ {[%clk 0:00:20.1]} 50...
Kf5 {[%clk 0:00:13.5]} 51. Nxb6 {[%clk 0:00:20]} 51... e4+ {[%clk 0:00:13.1]}
52. Ke2 {[%clk 0:00:18.9]} 52... d3+ {[%clk 0:00:12.6]} 53. Kd2 {[%clk
0:00:18.8]} 53... Kf4 {[%clk 0:00:12]} 54. Nc4 {[%clk 0:00:18.6]} 54... Kf3
{[%clk 0:00:11.1]} 55. Ne5+ {[%clk 0:00:17.7]} 55... Kf2 {[%clk 0:00:10]} 56.
Nc4 {[%clk 0:00:15]} 56... Nb4 {[%clk 0:00:07.7]} 57. a3 {[%clk 0:00:13.9]}
57... Nd5 {[%clk 0:00:07]} 58. b4 {[%clk 0:00:11.9]} 58... e3+ {[%clk
0:00:06.5]} 59. Nxe3 {[%clk 0:00:11.1]} 59... axb4 {[%clk 0:00:05]} 60. Kxd3
{[%clk 0:00:11]} 60... bxa3 {[%clk 0:00:03.4]} 61. Nc2 {[%clk 0:00:09.9]} 61...
a2 {[%clk 0:00:02.5]} 62. Na1 {[%clk 0:00:09.8]} 62... Nb4+ {[%clk 0:00:01.8]}
63. Kc3 {[%clk 0:00:08.9]} 63... Nd5+ {[%clk 0:00:01.2]} 64. Kb2 {[%clk
0:00:08.8]} 64... Ne3 {[%clk 0:00:00.4]} 65. Nb3 {[%clk 0:00:08.3]} 1/2-1/2

[Event "Live Chess"]
[Site "Chess.com"]
[Date "2023.05.20"]
[Round "-"]
[White "WilliamofOrange16th"]
[Black "wot-not"]
[Result "1-0"]
[WhiteElo "1837"]
[BlackElo "1520"]
[TimeControl "300"]
[EndTime "14:51:11 PDT"]
[Termination "WilliamofOrange16th won by checkmate"]

1. e4 {[%clk 0:04:57.2]} 1... Nf6 {[%clk 0:04:58.9]} 2. Nc3 {[%clk 0:04:55.3]}
2... e5 {[%clk 0:04:57.6]} 3. Nf3 {[%clk 0:04:53.1]} 3... d6 {[%clk 0:04:57]} 4.
Bc4 {[%clk 0:04:52.1]} 4... Be6 {[%clk 0:04:54.6]} 5. Bxe6 {[%clk 0:04:45.9]}
5... fxe6 {[%clk 0:04:54]} 6. O-O {[%clk 0:04:45.1]} 6... h6 {[%clk 0:04:53.2]}
7. d4 {[%clk 0:04:44.3]} 7... exd4 {[%clk 0:04:51.7]} 8. Nxd4 {[%clk 0:04:44.2]}
8... Qd7 {[%clk 0:04:41.4]} 9. f3 {[%clk 0:04:36.9]} 9... Nc6 {[%clk 0:04:40.6]}
10. Be3 {[%clk 0:04:35.7]} 10... Nxd4 {[%clk 0:04:39.4]} 11. Bxd4 {[%clk
0:04:34.9]} 11... e5 {[%clk 0:04:39.1]} 12. Be3 {[%clk 0:04:33.9]} 12... Be7
{[%clk 0:04:37.2]} 13. Nd5 {[%clk 0:04:32.7]} 13... Nxd5 {[%clk 0:04:36]} 14.
Qxd5 {[%clk 0:04:32.6]} 14... O-O-O {[%clk 0:04:32.1]} 15. Bxa7 {[%clk
0:04:28.4]} 15... b6 {[%clk 0:04:25.3]} 16. Qa8# {[%clk 0:04:28.3]} 1-0